bitfinex/quotes_ETHUSD_20241001
["timestamp","ask_amount","ask_price","bid_price","bid_amount"]
[1727806644074,4.79402,2516.9,2516.4,3.97385]
[1727806644234,4.79402,2516.9,2516.3,3.974]
[1727806644235,4.52337,2516.8,2516.3,3.974]
[1727806644432,6.99683255,2516.8,2516.3,3.974]
[1727806644675,3.97355,2516.7,2516.2,3.97415]
[1727806644847,3.97355,2516.7,2516.2,3.97413]
[1727806645194,3.97355,2516.7,2515.9,0.7002]
[1727806645195,3.97368,2516.6,2516.0,3.97449]
[1727806645338,0.55,2516.6,2516.1,3.97432]
[1727806645539,0.55,2516.6,2516.3,3.974]
[1727806645740,19.03401875,2516.7,2516.3,7.948]
[1727806646149,19.03401875,2516.7,2516.3,3.974]
[1727806646341,19.03401875,2516.7,2516.4,3.97386]
[1727806646974,1.368,2516.6,2515.6,0.7002]
[1727806647176,3.97443,2516.1,2515.5,3.97521]
[1727806647473,3.97443,2516.1,2515.3,0.7002]
[1727806647474,0.818,2515.9,2515.3,4.67578]
[1727806647643,0.818,2515.9,2515.6,3.9751]
[1727806647844,0.818,2515.9,2515.4,3.97544]
[1727806648039,0.55,2515.8,2515.3,3.97557]
[1727806648245,0.8297,2515.7,2514.8,0.7002]
[1727806648477,0.8297,2515.7,2514.2,5.69113967]
[1727806648478,4.52543,2515.5,2514.9,3.97629]
[1727806648676,3.97555,2515.4,2514.7,3.97646]
[1727806648841,3.97555,2515.4,2514.8,3.97642]
[1727806649177,3.97555,2515.4,2514.5,0.7002]
[1727806649178,0.8297,2515.1,2514.5,4.67702]
[1727806649343,0.8297,2515.1,2514.7,3.97652]
[1727806649860,0.8297,2515.1,2514.6,0.467702]
[1727806650065,0.8297,2515.1,2514.7,3.97652]
[1727806650481,3.97564,2515.4,2514.8,3.07952526]
[1727806650482,0.7742,2515.4,2514.8,3.07952526]
[1727806650714,23.00927875,2515.6,2514.8,3.07952526]
[1727806650715,19.03401875,2515.6,2515.1,3.97588]
[1727806651585,19.03401875,2515.6,2515.2,0.07951028]
[1727806651782,4.79176,2516.0,2515.2,0.07951028]
[1727806651783,0.8171,2516.0,2515.4,3.97542]
[1727806651989,0.8171,2516.0,2515.6,3.97509]
[1727806652300,0.8171,2516.0,2515.7,3.97501]
[1727806652489,0.8171,2516.0,2515.6,7.95019]
[1727806652809,0.8171,2516.0,2515.6,3.97509]
[1727806653112,0.7974,2516.3,2515.8,3.97486]
[1727806653270,19.03401875,2516.6,2515.9,3.07948726]
[1727806653271,4.77109,2516.6,2515.9,3.07948726]
[1727806653615,3.97394,2516.4,2515.9,7.05418726]
[1727806653915,4.77109,2516.6,2516.0,3.97455]
[1727806654070,3.9738,2516.5,2516.0,5.069481]
[1727806654268,4.77109,2516.6,2516.0,1.094931]
[1727806654526,3.9738,2516.5,2516.0,5.069481]
[1727806655100,3.97394,2516.4,2516.0,1.094931]
[1727806655282,3.97394,2516.4,2515.5,4.372842]
[1727806655283,0.55,2516.3,2515.5,4.372792]
[1727806655502,0.55,2516.3,2515.5,0.397542]
[1727806655673,3.97449,2516.1,2515.6,3.97515]
[1727806655869,0.7836,2516.4,2515.4,3.97541]
[1727806655870,4.75759,2516.4,2515.4,3.97541]
[1727806656108,1.080759,2516.3,2515.4,3.97537]
[1727806656296,3.9745,2516.1,2515.6,3.97517]
[1727806656507,0.55,2516.3,2515.8,3.97486]
[1727806656676,3.97419,2516.3,2515.7,3.0]
[1727806656880,3.97419,2516.3,2515.7,6.97501]
[1727806657109,23.79164875,2516.4,2515.8,3.97486]
[1727806657414,3.97433,2516.2,2515.8,1.094994]
[1727806657620,7.94827,2516.3,2515.8,5.069844]
[1727806657776,3.97425,2516.2,2515.8,1.094994]
[1727806658314,3.97425,2516.2,2515.5,3.0]
[1727806658528,0.55,2516.1,2515.5,3.0]
[1727806658675,3.97457,2516.0,2515.5,6.97533]
[1727806658877,3.97473,2515.9,2515.4,3.0]
[1727806659095,3.97504,2515.7,2515.4,3.0]
[1727806659315,3.97504,2515.7,2515.0,0.7002]
[1727806659529,3.97536,2515.5,2515.0,4.67624]
[1727806659813,3.9752,2515.6,2515.1,3.97595]
[1727806660127,3.9752,2515.6,2515.0,4.67624]
[1727806660292,3.97538,2515.5,2515.0,9.119924]
[1727806660492,0.7893,2515.8,2514.7,4.67676]
[1727806660493,3.97575,2515.3,2514.7,4.67676]
[1727806660691,9.66565967,2516.1,2514.4,0.7002]
[1727806660692,0.7566,2515.2,2514.4,0.7002]
[1727806661020,3.97561,2515.4,2514.8,3.97637]
[1727806661181,4.73198,2515.5,2515.0,3.97603]
[1727806661515,0.55,2514.9,2514.5,3.97692]
[1727806662328,3.97614,2515.0,2514.5,3.97692]
[1727806662486,4.52599,2515.1,2514.5,3.97684]
[1727806662820,8.77074,2515.2,2514.7,3.97659]
[1727806663023,4.79482,2515.2,2514.7,3.97659]
[1727806663705,8.77076,2515.2,2514.7,3.97659]
[1727806664016,8.77076,2515.2,2514.5,3.97683]
[1727806664017,3.97603,2515.1,2514.6,3.97669]
[1727806664328,4.79482,2515.2,2514.7,3.9766]
[1727806664618,19.03401875,2515.4,2514.9,3.97629]
[1727806664619,26.98529875,2515.4,2514.9,3.97629]
[1727806664927,19.03401875,2515.4,2514.9,3.97622]
[1727806665221,19.03401875,2515.4,2515.0,0.397622]
[1727806665377,23.00958875,2515.4,2515.0,0.397622]
[1727806665579,4.76155,2515.5,2515.0,0.397622]
[1727806665776,0.7862,2515.5,2515.1,3.97596]
[1727806666016,3.97511,2515.7,2515.2,4.4131582]
[1727806666201,3.97522,2515.6,2515.2,0.4373582]
[1727806666579,0.7896,2515.8,2515.2,0.4373582]
[1727806666824,3.97483,2515.9,2515.2,0.4373582]
[1727806666825,0.7603,2516.1,2515.7,3.97503]
[1727806666986,3.97432,2516.2,2515.8,3.97486]
[1727806667524,19.03401875,2516.3,2515.8,3.97486]
[1727806667525,23.00810875,2516.3,2515.8,3.97486]
[1727806667676,3.97379,2516.5,2516.0,3.97448]
[1727806667876,19.79301875,2516.7,2516.0,3.97448]
[1727806668119,19.79301875,2516.7,2516.2,3.97415]
[1727806668120,0.759,2516.7,2516.2,3.97415]
[1727806668429,0.759,2516.7,2514.9,8.65259]
[1727806668430,3.97539,2515.5,2514.9,8.65259]
[1727806668726,0.759,2515.7,2515.1,3.97598]
[1727806668727,4.7341,2515.7,2515.1,3.97598]
[1727806668895,3.97524,2515.6,2515.1,3.97598]
[1727806669214,3.97524,2515.6,2514.9,4.6764]
[1727806669474,3.97559,2515.4,2515.0,0.46764]
[1727806669582,3.97559,2515.4,2514.9,4.6764]
[1727806670593,3.97567,2515.3,2514.9,4.6764]
[1727806670927,0.55,2515.5,2514.9,4.6764]
[1727806671112,0.55,2515.5,2515.0,3.97602]
[1727806671428,4.52537,2515.5,2515.0,3.97602]
[1727806671987,3.97551,2515.4,2514.9,8.44411]
[1727806672919,0.55,2515.5,2515.0,3.97609]
[1727806673119,4.52536,2515.5,2515.0,3.97609]
[1727806674293,4.52544,2515.5,2515.0,3.97609]
[1727806674634,0.55,2515.5,2515.0,3.97609]
[1727806674836,0.55,2515.5,2515.2,3.97581]
[1727806675040,19.79691875,2516.0,2515.2,0.79519]
[1727806675240,19.03401875,2516.0,2515.8,3.97476]
[1727806675397,4.73702,2516.3,2515.8,3.97476]
[1727806675799,4.73702,2516.3,2515.5,0.7002]
[1727806675996,3.97425,2516.2,2515.7,3.97497]
[1727806676207,3.97425,2516.2,2515.7,7.94991]
[1727806676436,3.97425,2516.2,2515.7,8.814901]
[1727806676622,3.97425,2516.2,2515.7,4.839951]
[1727806677137,0.7629,2516.3,2515.7,4.839951]
[1727806677437,0.55,2516.0,2515.6,3.0]
[1727806677602,4.73709,2516.3,2515.3,3.97556]
[1727806677603,0.55,2516.2,2515.3,3.97556]
[1727806677797,7.9493,2516.0,2515.5,3.97533]
[1727806677996,4.52506,2515.7,2515.1,3.97585]
[1727806678228,3.97537,2515.5,2515.1,3.97585]
[1727806678898,0.55,2515.7,2515.1,3.97585]
[1727806679098,3.9752,2515.6,2515.1,3.97585]
[1727806679696,3.9752,2515.6,2514.9,4.67648]
[1727806679898,3.97552,2515.4,2514.9,7.95248]
[1727806680133,3.97536,2515.5,2515.0,3.97608]
[1727806680502,4.52553,2515.4,2514.9,3.9762]
[1727806680713,0.55,2515.5,2514.9,3.97619]
[1727806681048,0.55,2515.5,2515.1,3.97597]
[1727806681422,0.55,2515.5,2514.7,7.67681]
[1727806681423,0.8258,2515.3,2514.7,4.67669]
[1727806681626,5.35159,2515.3,2514.8,3.97638]
[1727806681828,5.35159,2515.3,2514.4,4.67728]
[1727806681829,0.8258,2515.3,2514.6,3.97666]
[1727806682057,19.03401875,2515.4,2515.0,3.97599]
[1727806682417,0.55,2515.3,2514.8,3.97639]
[1727806682619,3.97637,2514.9,2514.4,4.67722]
[1727806682853,3.97637,2514.9,2514.4,3.97702]
[1727806683033,3.97662,2514.7,2514.2,3.97728]
[1727806683210,3.97662,2514.7,2514.1,0.7002]
[1727806683211,3.977,2514.5,2514.1,0.7002]
[1727806683415,3.977,2514.5,2514.0,3.97762]
[1727806683416,4.7813,2514.5,2514.0,3.97762]
[1727806683616,19.03401875,2514.7,2514.4,3.97709]
[1727806683915,0.55,2514.6,2514.4,3.97709]
[1727806684234,19.03401875,2514.7,2514.5,3.97678]
[1727806684492,19.03401875,2514.7,2514.3,4.67742]
[1727806684812,0.55,2514.6,2514.2,3.97738]
[1727806685117,0.7565,2514.5,2514.2,3.0]
[1727806685324,4.52721,2514.4,2513.8,3.97788]
[1727806685525,4.52721,2514.4,2513.7,0.7002]
[1727806685526,19.58401875,2514.4,2514.0,3.97768]
[1727806685750,19.58401875,2514.4,2513.9,3.97772]
[1727806685751,23.56112875,2514.4,2513.9,3.97772]
[1727806685967,0.55,2514.1,2513.7,4.6783]
[1727806686250,0.55,2514.1,2513.7,3.97805]
[1727806686460,0.55,2514.2,2513.8,3.97792]
[1727806686810,0.55,2514.2,2513.7,3.97805]
[1727806687153,0.55,2514.2,2513.9,3.97778]
[1727806687355,0.55,2514.2,2513.9,7.95558]
[1727806687517,0.55,2514.2,2513.9,3.97778]
[1727806688288,0.55,2514.2,2513.9,7.95558]
[1727806688471,19.03401875,2514.3,2514.0,3.97759]
[1727806688778,19.03401875,2514.3,2514.1,3.97744]
[1727806689138,19.03401875,2514.3,2514.2,3.9774]
[1727806689341,0.55,2514.4,2514.1,3.97744]
[1727806689543,0.55,2514.4,2513.7,3.97808]
[1727806689847,0.55,2514.1,2513.8,3.97803]
[1727806690049,0.55,2514.3,2513.9,3.97777]
[1727806690669,0.55,2514.3,2513.8,3.97803]
[1727806690867,4.52725,2514.3,2513.8,3.97795]
[1727806691066,4.52725,2514.3,2513.5,3.0]
[1727806691067,3.97742,2514.2,2513.5,3.0]
[1727806691269,3.97742,2514.2,2511.9,0.1233662]
[1727806691270,1.3063,2513.5,2512.7,0.7002]
[1727806691476,20.34031875,2513.5,2513.1,3.97904]
[1727806691645,24.31891875,2513.5,2513.0,3.97919]
[1727806692094,24.31891875,2513.5,2512.8,3.97951]
[1727806692095,23.01278875,2513.4,2512.8,3.97951]
[1727806692273,23.01278875,2513.4,2512.4,3.98023]
[1727806692274,0.55,2512.8,2512.4,3.98022]
[1727806692617,0.55,2512.8,2512.1,0.7002]
[1727806692618,4.52949,2512.9,2512.3,3.98037]
[1727806692894,0.55,2512.7,2512.3,3.98037]
[1727806693189,0.55,2512.7,2512.4,3.9802]
[1727806693402,19.03401875,2513.1,2512.0,3.98086]
[1727806693403,0.55,2513.0,2512.0,3.98078]
[1727806693555,0.55,2512.5,2512.1,3.98063]
[1727806694556,0.55,2512.3,2512.0,3.98078]
[1727806694905,0.55,2512.3,2511.9,0.1233662]
[1727806695214,6.96219188,2512.3,2511.9,0.1233662]
[1727806695357,2.98171188,2512.3,2511.9,0.1233662]
[1727806695775,0.55,2512.0,2511.9,0.1233662]
[1727806695988,1.3029,2512.0,2511.9,0.1233662]
[1727806697259,23.01469875,2512.2,2512.1,3.98073]
[1727806697260,19.03401875,2512.2,2512.1,3.98073]
[1727806697569,19.03401875,2512.2,2512.1,4.39113962]
[1727806698581,0.7529,2512.6,2512.5,3.98009]
[1727806698788,0.8306,2512.9,2512.5,3.98009]
[1727806698957,0.8306,2512.9,2512.4,0.0273831]
[1727806699169,0.8306,2512.9,2512.7,3.97967]
[1727806699389,0.8306,2512.9,2512.3,3.98036]
[1727806699390,4.81007,2512.9,2512.3,3.98036]
[1727806699591,4.81007,2512.9,2512.4,3.0]
[1727806699791,0.8306,2512.9,2512.2,0.7002]
[1727806700114,0.8306,2512.9,2512.6,3.97988]
[1727806700412,19.03401875,2513.0,2512.7,3.97966]
[1727806700614,19.03401875,2513.0,2512.6,3.97985]
[1727806700783,19.03401875,2513.0,2512.7,3.97977]
[1727806700971,19.03401875,2513.0,2512.6,3.97985]
[1727806701207,19.03401875,2513.0,2512.6,8.357685]
[1727806701413,19.03401875,2513.0,2512.6,4.377835]
[1727806701614,19.03401875,2513.0,2512.4,7.96029]
[1727806701912,23.01333875,2513.0,2512.5,3.98007]
[1727806702121,0.55,2512.9,2512.5,3.98007]
[1727806702317,0.55,2512.9,2512.6,3.97991]
[1727806702612,0.55,2512.9,2512.7,3.97977]
[1727806702769,19.03401875,2513.0,2512.7,3.97977]
[1727806703206,19.03401875,2513.0,2512.6,4.377891]
[1727806703484,19.03401875,2513.0,2512.6,3.9799]
[1727806703896,19.03401875,2513.0,2512.5,3.98008]
[1727806704176,4.80567,2513.2,2512.6,3.97992]
[1727806704177,4.52916,2513.1,2512.6,3.97992]
[1727806704484,0.55,2513.1,2512.7,3.97978]
[1727806704684,0.55,2513.1,2512.8,3.97957]
[1727806704885,0.55,2513.1,2512.8,0.795924]
[1727806705383,3.97943,2513.0,2512.6,3.0]
[1727806706008,3.97943,2513.0,2512.3,0.41106096]
[1727806706220,3.97943,2513.0,2512.2,0.7002]
[1727806706221,0.55,2512.8,2512.2,0.7002]
[1727806706386,0.55,2512.9,2512.2,0.7002]
[1727806706591,3.97979,2512.7,2512.3,3.9804]
[1727806706804,0.55,2512.9,2512.4,3.98023]
[1727806707157,4.52947,2512.9,2512.5,3.98008]
[1727806707357,3.97963,2512.8,2512.3,3.9804]
[1727806707660,4.52947,2512.9,2512.3,3.98033]
[1727806707843,0.7648,2512.7,2512.3,3.98039]
[1727806708216,4.74458,2512.7,2512.3,3.98039]
[1727806708421,4.74458,2512.7,2512.2,3.98055]
[1727806708754,4.74458,2512.7,2512.3,3.0]
[1727806708963,5.90763689,2512.7,2512.1,6.98061]
[1727806709255,0.55,2512.6,2512.1,3.0]
[1727806709464,4.53001,2512.6,2512.1,3.98073]
[1727806709666,3.9801,2512.5,2512.1,3.98073]
[1727806710071,0.7648,2512.7,2512.5,3.98002]
[1727806710359,19.03401875,2512.9,2512.7,3.97967]
[1727806710568,19.03401875,2512.9,2512.8,3.97962]
[1727806710772,19.03401875,2512.9,2512.7,3.97967]
[1727806710773,0.8183,2513.4,2512.6,4.68011]
[1727806710924,0.8183,2513.4,2512.9,3.97938]
[1727806710925,23.83107875,2513.4,2512.9,3.97938]
[1727806711124,23.83107875,2513.4,2513.0,3.97928]
[1727806711125,19.85231875,2513.4,2513.0,3.97928]
[1727806711333,19.85231875,2513.4,2513.1,3.97906]
[1727806711676,0.8183,2513.7,2513.5,3.97839]
[1727806711975,19.03401875,2514.0,2513.3,3.9787]
[1727806711976,3.97818,2513.8,2513.3,3.9787]
[1727806712133,3.97804,2513.8,2513.3,3.9787]
[1727806712471,23.01205875,2513.9,2513.3,4.9240784]
[1727806712639,19.03401875,2513.9,2513.5,3.97844]
[1727806712967,23.01193875,2513.9,2513.5,3.97841]
[1727806713163,19.03401875,2513.9,2513.5,3.97841]
[1727806713378,19.03401875,2513.9,2513.6,3.97825]
[1727806713566,19.03401875,2513.9,2513.5,3.97841]
[1727806713871,19.03401875,2513.9,2513.5,3.97839]
[1727806714161,19.03401875,2513.9,2513.5,0.89022884]
[1727806714385,19.03401875,2513.9,2513.7,3.97817]
[1727806714528,3.97728,2514.3,2513.2,4.67916]
[1727806714529,0.7929,2514.3,2513.8,3.97788]
[1727806714762,0.7929,2514.3,2513.9,4.375538]
[1727806715079,3.97697,2514.5,2514.0,3.97769]
[1727806715387,3.97727,2514.3,2513.9,3.0]
[1727806715593,3.97758,2514.1,2513.9,3.0]
[1727806715794,1.3488,2514.0,2513.4,4.67877]
[1727806716107,1.3488,2514.0,2513.6,3.97831]
[1727806716108,0.7988,2514.0,2513.6,3.97831]
[1727806716405,3.97685,2514.6,2513.6,3.97831]
[1727806716406,0.55,2514.2,2513.6,3.97831]
[1727806716571,3.97758,2514.1,2513.6,3.97831]
[1727806717101,3.97823,2513.7,2513.3,3.0]
[1727806717311,3.97823,2513.7,2513.2,3.97889]
[1727806717516,3.97823,2513.7,2512.9,3.97937]
[1727806717517,3.97869,2513.4,2512.9,3.97937]
[1727806717822,3.97869,2513.4,2512.6,0.7002]
[1727806717823,3.9792,2513.1,2512.6,0.7002]
[1727806718109,3.97928,2513.1,2512.6,0.7002]
[1727806718268,3.97963,2512.8,2512.3,3.9803]
[1727806718909,0.55,2512.9,2512.0,0.7002]
[1727806719114,0.7905,2513.2,2512.7,3.97963]
[1727806719115,19.03401875,2513.0,2512.7,3.97963]
[1727806719278,0.55,2513.1,2512.7,3.97963]
[1727806719612,0.55,2513.1,2512.7,3.97978]
[1727806719822,0.55,2513.1,2512.8,3.9796]
[1727806720214,0.55,2513.1,2512.7,3.97978]
[1727806720394,19.82451875,2513.2,2512.8,3.97951]
[1727806720720,4.455123,2513.7,2512.7,7.747688]
[1727806720721,0.7615,2513.6,2512.7,7.747688]
[1727806720926,4.73988,2513.6,2512.9,3.97935]
[1727806721219,3.97888,2513.3,2512.9,3.97946]
[1727806721389,3.97888,2513.3,2512.7,7.747668]
[1727806721594,0.7615,2513.6,2512.9,3.0]
[1727806721795,3.97886,2513.3,2512.7,6.97974]
[1727806721999,7.95777,2513.3,2512.8,3.97961]
[1727806722417,3.97886,2513.3,2512.8,3.97953]
[1727806722623,7.95778,2513.3,2512.8,3.97953]
[1727806722860,7.95778,2513.3,2512.7,3.0]
[1727806722861,3.97902,2513.2,2512.7,3.0]
[1727806723024,0.55,2513.2,2512.6,3.9798]
[1727806723222,4.52922,2513.1,2512.6,3.97981]
[1727806723847,0.55,2513.1,2512.6,3.0]
[1727806724068,3.97949,2512.9,2512.4,3.98018]
[1727806724231,3.97949,2512.9,2512.5,3.98008]
[1727806724430,3.97949,2512.9,2512.5,3.0]
[1727806724631,3.97949,2512.9,2512.4,3.98024]
[1727806724830,3.97963,2512.8,2512.4,3.98024]
[1727806725031,3.97949,2512.9,2512.2,3.98047]
[1727806725243,4.7329,2512.5,2512.0,3.98081]
[1727806725564,0.7528,2512.5,2512.1,3.98066]
[1727806725956,0.7528,2512.5,2512.2,3.98055]
[1727806726153,0.7528,2512.5,2512.0,3.98079]
[1727806726355,0.7528,2512.5,2511.9,4.1043962]
[1727806726356,4.53033,2512.4,2511.9,4.1043962]
[1727806726561,3.98052,2512.3,2511.9,0.1233662]
[1727806726773,23.56434875,2512.4,2511.9,4.1043362]
[1727806727143,27.54470875,2512.4,2511.9,4.1043362]
[1727806727456,19.03401875,2512.4,2511.9,0.93191482]
[1727806727621,19.03401875,2512.4,2512.3,3.98041]
[1727806727820,19.03401875,2512.4,2512.0,3.98078]
[1727806728024,19.03401875,2512.4,2512.1,3.98061]
[1727806728270,23.01427875,2512.4,2512.0,3.98087]
[1727806728422,19.03401875,2512.4,2512.0,3.98087]
[1727806728964,19.03401875,2512.4,2512.0,7.96166]
[1727806729176,19.03401875,2512.4,2511.9,0.1233662]
[1727806729352,0.55,2512.3,2511.9,4.1043262]
[1727806729866,0.55,2512.3,2511.9,4.1043962]
[1727806729867,3.98048,2512.3,2511.9,4.1043962]
[1727806730622,0.55,2512.4,2512.0,3.98086]
[1727806730826,0.55,2512.4,2512.0,1.10852562]
[1727806731046,0.55,2512.4,2512.1,3.98072]
[1727806731254,0.55,2512.4,2512.2,3.98057]
[1727806731463,0.7534,2512.5,2512.2,3.98057]
[1727806731622,19.03401875,2512.6,2512.4,3.98025]
[1727806732561,19.03401875,2512.6,2512.4,3.98016]
[1727806732772,3.98075,2512.1,2511.9,0.1233662]
[1727806732977,4.74429,2512.0,2511.9,0.1233662]
[1727806733130,0.7634,2512.3,2511.9,0.1233662]
[1727806733332,0.55,2512.2,2511.9,0.1233662]
[1727806733534,0.7634,2512.3,2511.9,4.1044062]
[1727806733733,4.74384,2512.3,2511.9,0.1233662]
[1727806733958,0.7634,2512.3,2511.9,4.1043162]
[1727806734128,0.55,2512.5,2512.1,3.98063]
[1727806734481,4.77323,2512.6,2512.2,3.98047]
[1727806734482,0.7932,2512.6,2512.2,3.98047]
[1727806734659,19.03401875,2512.7,2512.4,3.98024]
[1727806735362,19.03401875,2512.7,2512.5,3.98009]
[1727806735588,0.8161,2512.9,2512.6,3.97983]
[1727806735863,3.97907,2513.2,2512.7,3.97971]
[1727806735864,4.80417,2513.2,2512.7,3.97971]
[1727806736066,19.85911875,2513.2,2512.8,3.97953]
[1727806736244,23.83812875,2513.2,2512.8,3.97953]
[1727806736450,23.83812875,2513.2,2512.9,3.97945]
[1727806736451,19.85911875,2513.2,2512.9,3.97945]
[1727806736752,0.7683,2513.6,2513.0,3.97919]
[1727806736954,19.80231875,2513.6,2513.0,0.07957732]
[1727806737174,23.78075875,2513.6,2513.1,3.97914]
[1727806737589,19.80231875,2513.6,2512.9,4.775258]
[1727806737747,3.97859,2513.5,2513.0,4.8268058]
[1727806738176,7.95726,2513.5,2513.0,4.8268058]
[1727806738374,0.55,2513.4,2512.8,7.6798]
[1727806738692,4.52853,2513.5,2512.8,3.7002]
[1727806738887,4.52853,2513.5,2512.8,0.7002]
[1727806739046,4.52853,2513.5,2513.0,3.97921]
[1727806740261,0.55,2513.3,2512.8,3.0]
[1727806740466,0.55,2513.3,2512.9,3.97945]
[1727806740676,4.52894,2513.3,2512.8,3.0]
[1727806741011,0.55,2513.3,2512.8,6.97956]
[1727806741351,0.55,2513.3,2512.8,6.97954]
[1727806741547,4.52867,2513.4,2512.9,3.97931]
[1727806741773,3.9789,2513.3,2512.8,6.97961]
[1727806741959,0.55,2513.1,2512.7,3.0]
[1727806742163,4.52914,2513.1,2512.7,3.0]
[1727806742366,0.55,2513.1,2512.7,6.97977]
[1727806742698,19.03401875,2513.2,2512.8,3.97952]
[1727806742998,0.55,2513.1,2512.8,3.97952]
[1727806743308,19.03401875,2513.2,2512.8,3.97949]
[1727806743452,19.03401875,2513.2,2512.8,7.95901]
[1727806743651,19.03401875,2513.2,2512.8,3.97949]
[1727806744092,19.03401875,2513.2,2512.5,0.7002]
[1727806744093,19.03401875,2513.2,2513.0,3.97929]
[1727806744597,19.03401875,2513.2,2512.9,3.97938]
[1727806745022,19.03401875,2513.2,2513.0,3.97929]
[1727806745413,19.03401875,2513.2,2513.1,3.97914]
[1727806745647,19.03401875,2513.2,2513.1,13.38101077]
[1727806745857,0.7845,2514.0,2513.1,13.38101077]
[1727806745858,0.7845,2514.0,2513.2,3.0]
[1727806746045,0.7845,2514.0,2513.3,3.9788]
[1727806746231,0.7845,2514.0,2513.3,7.95755]
[1727806746232,3.97805,2513.8,2513.3,7.95755]
[1727806746430,3.97805,2513.8,2513.3,7.9575]
[1727806746650,3.97805,2513.8,2513.2,3.97888]
[1727806746851,3.97837,2513.6,2513.2,3.97888]
[1727806747052,3.97885,2513.3,2512.9,3.0]
[1727806747253,0.7643,2513.4,2513.0,3.97921]
[1727806747457,0.7643,2513.4,2513.2,3.97897]
[1727806747670,0.7643,2513.4,2513.0,3.97921]
[1727806747671,0.7643,2513.4,2513.1,3.97899]
[1727806748221,0.7643,2513.4,2513.0,3.97921]
[1727806748222,4.74298,2513.4,2513.0,3.9793]
[1727806749478,0.55,2513.1,2512.9,3.97945]
[1727806749971,0.55,2513.3,2513.0,3.9792]
[1727806750281,0.55,2513.5,2513.2,3.97892]
[1727806750476,0.55,2513.5,2513.3,3.9788]
[1727806750632,19.03401875,2513.6,2513.1,3.97906]
[1727806750633,19.03401875,2513.6,2513.5,3.97851]
[1727806751670,19.03401875,2513.9,2513.5,3.97851]
[1727806751881,19.03401875,2513.9,2513.6,3.97831]
[1727806752040,0.7802,2514.0,2513.5,3.97851]
[1727806752376,0.7802,2514.0,2513.6,3.97821]
[1727806752563,0.7802,2514.0,2513.7,3.97818]
[1727806752762,23.01145875,2514.2,2513.8,3.97797]
[1727806752938,23.01145875,2514.2,2513.3,4.6789]
[1727806752939,3.97764,2514.1,2513.6,3.97824]
[1727806753139,19.03401875,2514.2,2513.7,3.9781]
[1727806753140,23.01150875,2514.2,2513.7,3.9781]
[1727806753441,3.97757,2514.1,2513.7,3.9781]
[1727806753858,19.03401875,2514.2,2513.8,3.97801]
[1727806754278,19.03401875,2514.2,2513.4,3.97865]
[1727806754578,19.03401875,2514.2,2513.9,3.97781]
[1727806754787,19.03401875,2514.2,2513.9,7.95561]
[1727806754988,19.03401875,2514.2,2513.9,3.9778]
[1727806755283,19.03401875,2514.2,2514.0,3.97771]
[1727806755435,19.03401875,2514.2,2513.9,7.95559]
[1727806755633,19.03401875,2514.2,2513.9,3.97779]
[1727806755836,19.03401875,2514.2,2514.1,3.97756]
[1727806756090,7.95368,2514.6,2514.3,3.97714]
[1727806756091,19.03401875,2514.5,2514.3,3.97714]
[1727806756288,0.55,2514.5,2514.2,3.97737]
[1727806756800,3.97674,2514.7,2514.0,3.9776]
[1727806756801,19.03401875,2514.7,2514.5,3.97693]
[1727806758088,19.03401875,2514.7,2514.4,3.977]
[1727806759262,19.03401875,2514.7,2514.3,7.95435]
[1727806759683,19.03401875,2514.7,2514.5,3.97692]
[1727806760499,19.03401875,2515.1,2514.7,3.0]
[1727806760706,7.38,2515.8,2514.7,3.0]
[1727806760707,0.8226,2515.6,2515.3,3.97559]
[1727806760872,0.8226,2515.6,2515.3,3.97556]
[1727806761808,0.8226,2515.6,2515.1,3.97587]
[1727806761809,0.8226,2515.6,2515.2,3.0]
[1727806762301,7.57845488,2515.6,2515.0,3.97603]
[1727806762461,7.57845488,2515.6,2514.9,3.9762]
[1727806762659,7.57845488,2515.6,2514.8,3.97641]
[1727806762660,3.97553,2515.4,2514.8,3.97641]
[1727806762963,3.97553,2515.4,2514.7,6.97654]
[1727806762964,0.8114,2515.1,2514.7,6.97646]
[1727806763175,0.55,2515.0,2514.7,3.97653]
[1727806764298,19.58401875,2515.0,2514.7,3.97653]
[1727806765555,19.58401875,2515.0,2514.7,7.95306]
[1727806765768,19.58401875,2515.0,2514.7,3.97653]
[1727806766287,22.02114362,2515.0,2514.7,3.97653]
[1727806766499,22.02114362,2515.0,2514.7,3.97652]
[1727806766804,19.58401875,2515.0,2514.7,3.97652]
[1727806766965,19.58401875,2515.0,2514.5,3.97683]
[1727806766966,23.56015875,2515.0,2514.5,3.97678]
[1727806767170,27.53641875,2515.0,2514.4,3.97708]
[1727806767356,3.53154188,2514.9,2514.5,7.95371]
[1727806767556,3.53154188,2514.9,2514.5,3.9768]
[1727806768093,0.55,2514.8,2514.5,3.9768]
[1727806769269,0.7779,2514.9,2514.7,3.97648]
[1727806771857,0.7779,2514.9,2514.6,3.9767]
[1727806772058,0.7779,2514.9,2514.7,3.97658]
[1727806772496,0.7779,2514.9,2514.6,7.95337]
[1727806772854,0.7779,2514.9,2514.6,3.97667]
[1727806773094,0.7779,2514.9,2514.6,7.95336]
[1727806773300,0.55,2514.8,2514.4,3.97698]
[1727806773471,0.55,2514.8,2514.4,7.95395]
[1727806773806,0.7779,2514.9,2514.5,3.97683]
[1727806773964,4.75423,2514.9,2514.5,3.97683]
[1727806774363,4.75423,2514.9,2514.4,7.95398]
[1727806774701,7.53068088,2514.9,2514.5,3.97691]